bitfinex/quotes_BTCUSD_20211001
["timestamp","ask_amount","ask_price","bid_price","bid_amount"]
[1633074050993,0.53471916,44761.0,44760.0,0.098]
[1633074051295,0.50773234,44761.0,44760.0,0.098]
[1633074051491,0.31407529,44761.0,44760.0,0.098]
[1633074052293,0.31407529,44761.0,44760.0,0.003]
[1633074053494,0.07170656,44761.0,44759.0,0.21482383]
[1633074053691,0.05805,44760.0,44759.0,0.21482383]
[1633074053891,0.05805,44760.0,44759.0,0.02068634]
[1633074054496,0.05805,44760.0,44753.0,1.480411]
[1633074054497,0.05929205,44760.0,44751.0,0.78997477]
[1633074054694,0.00121725,44752.0,44751.0,0.22347477]
[1633074055493,0.03321725,44752.0,44751.0,0.22347477]
[1633074055694,0.09005,44752.0,44751.0,0.22347477]
[1633074055897,0.09005,44752.0,44751.0,1.21637477]
[1633074056100,0.09005,44752.0,44751.0,1.39916289]
[1633074056293,0.09005,44752.0,44751.0,1.50639304]
[1633074056693,0.09005,44752.0,44751.0,2.1806213]
[1633074057102,0.12915919,44757.0,44756.0,1.27916186]
[1633074057299,0.12914876,44760.0,44757.0,0.18026013]
[1633074057497,0.12914863,44760.0,44758.0,0.0197]
[1633074057701,0.17064191,44761.0,44759.0,0.42362425]
[1633074057896,0.17064191,44761.0,44760.0,0.8697]
[1633074058096,0.17064191,44761.0,44760.0,0.9697]
[1633074058495,0.17064191,44761.0,44760.0,0.95]
[1633074058693,0.17064191,44761.0,44760.0,0.1]
[1633074058894,0.17064191,44761.0,44760.0,0.546831]
[1633074059095,0.04149337,44761.0,44760.0,0.28803182]
[1633074059293,0.04149337,44761.0,44760.0,0.75638587]
[1633074059496,0.04149337,44761.0,44760.0,0.82008587]
[1633074059695,0.17064284,44761.0,44760.0,0.82008587]
[1633074059897,0.04149337,44761.0,44760.0,0.82008587]
[1633074060294,0.04149337,44761.0,44760.0,0.88173182]
[1633074060694,0.04149337,44761.0,44760.0,0.90008587]
[1633074060897,0.04149337,44761.0,44760.0,0.75608587]
[1633074061096,0.04149337,44761.0,44760.0,0.73773182]
[1633074061295,0.04149337,44761.0,44760.0,0.28773182]
[1633074061496,0.04149337,44761.0,44760.0,0.4157495]
[1633074062001,0.13414009,44764.0,44761.0,1.23291463]
[1633074062199,0.13414009,44764.0,44763.0,0.97741688]
[1633074062401,0.00116942,44771.0,44767.0,0.335051]
[1633074062602,0.00116942,44771.0,44769.0,0.28460138]
[1633074062806,0.00237187,44771.0,44770.0,0.0197]
[1633074063001,0.00237187,44771.0,44763.0,0.02741688]
[1633074063200,0.00357452,44771.0,44766.0,0.22336373]
[1633074063399,0.22225738,44771.0,44770.0,0.03]
[1633074063597,0.02857452,44771.0,44770.0,0.03]
[1633074063798,0.02857452,44771.0,44766.0,0.22336373]
[1633074063799,0.10642864,44771.0,44766.0,0.22336373]
[1633074064062,0.31056607,44770.0,44766.0,0.22336373]
[1633074064200,0.31056106,44769.0,44766.0,0.22336373]
[1633074064399,0.31056311,44768.0,44766.0,0.22336373]
[1633074064599,0.3105597,44767.0,44766.0,0.22336373]
[1633074064801,0.31056067,44767.0,44766.0,0.22336373]
[1633074065002,0.310561,44768.0,44766.0,0.45905553]
[1633074065204,0.3105601,44767.0,44766.0,0.79418653]
[1633074065401,0.31056064,44768.0,44766.0,0.22336373]
[1633074065599,0.31056064,44768.0,44766.0,0.26236373]
[1633074065600,0.007,44767.0,44766.0,0.26236373]
[1633074065802,0.31755869,44767.0,44766.0,0.26236373]
[1633074066999,0.31055869,44767.0,44766.0,0.22336373]
[1633074067201,0.41206202,44767.0,44766.0,0.22336373]
[1633074067406,0.44206208,44767.0,44766.0,0.22336373]
[1633074067614,0.44206208,44767.0,44761.0,0.08731463]
[1633074067615,0.44142126,44766.0,44758.0,2.78881891]
[1633074067810,0.00120016,44759.0,44758.0,0.62971891]
[1633074068407,0.31179588,44759.0,44758.0,0.62971891]
[1633074068607,0.79392889,44759.0,44758.0,0.62971891]
[1633074069207,0.79392889,44759.0,44758.0,0.73971891]
[1633074069408,0.83292889,44759.0,44758.0,0.73971891]
[1633074069809,0.92787708,44759.0,44758.0,0.73971891]
[1633074070609,1.15107708,44759.0,44758.0,0.73971891]
[1633074070812,1.11207708,44759.0,44758.0,0.73971891]
[1633074071010,1.33870708,44759.0,44758.0,0.73971891]
[1633074071413,1.37870708,44759.0,44758.0,0.73971891]
[1633074071610,1.37923718,44759.0,44758.0,0.73971891]
[1633074071813,1.37923718,44759.0,44758.0,0.11]
[1633074072208,1.37923718,44759.0,44745.0,0.09927872]
[1633074072209,1.21,44758.0,44745.0,0.09927872]
[1633074072415,0.00129055,44747.0,44743.0,0.998504]
[1633074072614,0.00129055,44747.0,44739.0,0.0004]
[1633074073412,0.17765002,44744.0,44742.0,0.41640498]
[1633074073613,0.17765002,44744.0,44743.0,0.025]
[1633074074014,0.02629055,44747.0,44743.0,0.025]
[1633074074216,0.025,44747.0,44743.0,0.125]
[1633074074618,0.025,44747.0,44745.0,0.558434]
[1633074074818,0.11,44758.0,44747.0,0.8]
[1633074075017,0.11,44758.0,44755.0,0.39872086]
[1633074075217,0.11,44758.0,44756.0,0.0197]
[1633074075417,0.11,44758.0,44756.0,0.01911404]
[1633074075819,0.11,44758.0,44756.0,0.335188]
[1633074076221,0.20249894,44757.0,44753.0,0.0197]
[1633074076816,0.1777482,44754.0,44753.0,0.0197]
[1633074077017,0.20249894,44757.0,44753.0,0.0197]
[1633074077217,0.00120134,44757.0,44753.0,0.09706228]
[1633074077622,0.11,44758.0,44753.0,0.09706228]
[1633074077818,0.11,44758.0,44753.0,0.13606228]
[1633074078221,0.11,44758.0,44756.0,0.335163]
[1633074079084,0.2949568,44758.0,44753.0,0.13606228]
[1633074079223,0.2949568,44758.0,44756.0,0.11]
[1633074079423,0.11,44758.0,44756.0,0.11]
[1633074079824,0.119,44758.0,44756.0,0.11]
[1633074080022,0.119,44758.0,44757.0,0.21024082]
[1633074080824,0.119,44758.0,44756.0,0.11]
[1633074081027,0.11,44758.0,44756.0,0.11]
[1633074081626,0.11123388,44758.0,44756.0,0.11]
[1633074082093,0.135,44758.0,44756.0,0.142]
[1633074082828,0.135,44758.0,44757.0,0.22083151]
[1633074083427,0.11,44758.0,44757.0,0.22083151]
[1633074083626,0.07,44758.0,44757.0,0.22083151]
[1633074083825,0.07,44758.0,44757.0,0.25783151]
[1633074084428,0.07,44758.0,44757.0,0.22083151]
[1633074084628,0.07,44758.0,44757.0,0.44427564]
[1633074085234,0.07,44758.0,44757.0,0.43208564]
[1633074085430,0.07006077,44758.0,44757.0,0.48208564]
[1633074085830,0.07006077,44758.0,44757.0,0.51808564]
[1633074086831,0.07006077,44758.0,44757.0,0.29725413]
[1633074087229,0.07006077,44758.0,44757.0,0.26125413]
[1633074087830,0.07006077,44758.0,44757.0,0.29725413]
[1633074088230,0.31013819,44758.0,44757.0,0.29725413]
[1633074088831,0.31013819,44758.0,44757.0,0.22344413]
[1633074089030,0.07006077,44758.0,44757.0,0.22344413]
[1633074089829,0.10606077,44758.0,44757.0,0.22344413]
[1633074090431,0.10606077,44758.0,44757.0,0.27344413]
[1633074091831,0.10006077,44758.0,44757.0,0.27344413]
[1633074093038,0.55946857,44758.0,44746.0,0.0197]
[1633074093242,0.00127972,44747.0,44743.0,2.279109]
[1633074093435,0.00127972,44747.0,44743.0,1.9438]
[1633074093635,0.06456867,44753.0,44743.0,0.0087]
[1633074093834,0.24394223,44749.0,44743.0,0.0087]
[1633074094097,0.034,44747.0,44743.0,0.0087]
[1633074094236,0.22663369,44744.0,44739.0,0.1003]
[1633074094437,0.24858213,44743.0,44739.0,0.1003]
[1633074095035,0.23663465,44746.0,44741.0,0.09156857]
[1633074096034,0.27063465,44746.0,44741.0,0.09156857]
[1633074096240,0.27063465,44746.0,44741.0,0.335322]
[1633074096436,0.27063465,44746.0,44741.0,0.385322]
[1633074096633,0.27063465,44746.0,44741.0,0.05]
[1633074096835,0.27063465,44746.0,44740.0,0.2735465]
[1633074097638,0.06456794,44753.0,44746.0,0.20628564]
[1633074097838,0.06456387,44756.0,44752.0,0.22153083]
[1633074098038,0.13456139,44758.0,44753.0,0.16560064]
[1633074098237,0.07,44758.0,44753.0,0.16560064]
[1633074098439,0.07,44758.0,44754.0,0.21515751]
[1633074098639,0.07,44758.0,44756.0,0.22344469]
[1633074098837,0.07,44758.0,44757.0,0.0197]
[1633074099036,0.07,44758.0,44756.0,0.48921411]
[1633074099233,0.07,44758.0,44757.0,0.4197]
[1633074099435,0.07,44758.0,44757.0,0.0697]
[1633074100035,0.107,44758.0,44757.0,0.0697]
[1633074100237,0.107,44758.0,44757.0,0.404868]
[1633074100437,0.30873516,44758.0,44757.0,0.404868]
[1633074101040,0.107,44758.0,44757.0,0.64804002]
[1633074101239,0.07,44758.0,44757.0,0.64804002]
[1633074101840,0.07,44758.0,44757.0,0.404868]
[1633074102049,0.4151826,44758.0,44746.0,0.24665591]
[1633074102246,0.00127882,44753.0,44747.0,0.55876818]
[1633074102440,0.00127882,44753.0,44747.0,0.22349118]
[1633074102839,0.40150504,44753.0,44747.0,0.22349118]
[1633074103037,0.31341503,44753.0,44747.0,0.22349118]
[1633074103239,0.18315791,44753.0,44747.0,0.22349118]
[1633074103439,0.24773299,44753.0,44747.0,0.22349118]
[1633074103843,0.05932882,44753.0,44751.0,0.22350664]
[1633074104045,0.09005,44753.0,44752.0,0.31650222]
[1633074104239,0.09005,44753.0,44752.0,0.55347986]
[1633074104440,0.09005,44753.0,44752.0,0.45850847]
[1633074104840,0.09005,44753.0,44752.0,0.60676083]
[1633074105038,0.09005,44753.0,44752.0,0.27153083]
[1633074105437,0.05805,44753.0,44752.0,0.27153083]
[1633074105843,0.05805,44753.0,44752.0,0.48243939]
[1633074106107,0.09305,44753.0,44752.0,0.48243939]
[1633074107045,0.09432403,44753.0,44752.0,0.22153083]
[1633074107242,0.65126633,44753.0,44752.0,0.22153083]
[1633074107441,1.01994908,44753.0,44752.0,0.22153083]
[1633074107643,0.36994908,44753.0,44746.0,0.08005591]
[1633074107841,0.06458845,44750.0,44746.0,0.08005591]
[1633074108043,0.05805,44749.0,44746.0,0.08005591]
[1633074108240,0.05805,44749.0,44747.0,0.22563882]
[1633074108641,0.05805,44749.0,44746.0,0.11]
[1633074109039,0.04805,44749.0,44746.0,0.11]
[1633074109641,0.37429993,44749.0,44746.0,0.11]
[1633074109843,0.04805,44749.0,44746.0,0.11]
[1633074110044,0.04805,44749.0,44747.0,0.0012264]
[1633074110642,0.04805,44749.0,44746.0,0.2592264]
[1633074110843,0.04805,44749.0,44748.0,0.335228]
[1633074112112,0.24861316,44749.0,44748.0,0.373228]
[1633074112244,0.24861316,44749.0,44748.0,0.423228]
[1633074112853,0.24984171,44749.0,44748.0,0.038]
[1633074113049,0.47357181,44749.0,44748.0,0.038]
[1633074113244,1.01086361,44749.0,44748.0,0.038]
[1633074113451,1.01086361,44749.0,44746.0,0.11]
[1633074113646,1.06582902,44747.0,44746.0,0.11]
[1633074113844,1.74669311,44747.0,44746.0,0.11]
[1633074114044,2.21601459,44747.0,44746.0,0.11]
[1633074114245,1.21601459,44747.0,44746.0,0.11]
[1633074114643,1.32817059,44747.0,44746.0,0.11]
[1633074114843,0.74665835,44747.0,44746.0,0.11]
[1633074115109,0.55715515,44747.0,44746.0,0.11]
[1633074115245,0.55662505,44747.0,44746.0,0.11]
[1633074115445,0.4811427,44747.0,44746.0,0.11]
[1633074115645,0.4816728,44747.0,44746.0,0.16]
[1633074116044,0.4811427,44747.0,44746.0,0.16]
[1633074116249,0.31693694,44747.0,44746.0,0.16]
[1633074116447,0.42472923,44747.0,44746.0,0.16]
[1633074116645,0.51429712,44747.0,44746.0,0.16]
[1633074117244,0.51429712,44747.0,44746.0,0.155]
[1633074117646,0.47329712,44747.0,44746.0,0.155]
[1633074118247,0.51282722,44747.0,44746.0,0.155]
[1633074118448,0.51229712,44747.0,44746.0,0.11]
[1633074119048,0.51229712,44747.0,44739.0,0.0004]
[1633074119247,0.21827305,44746.0,44739.0,0.0004]
[1633074119453,0.04805,44745.0,44739.0,0.0004]
[1633074119849,0.20594259,44742.0,44741.0,0.335308]
[1633074120048,0.04805,44742.0,44741.0,0.335308]
[1633074120249,0.04805,44742.0,44741.0,0.05]
[1633074120648,0.04805,44742.0,44739.0,0.0324]
[1633074120848,0.06386236,44747.0,44739.0,0.0324]
[1633074121118,0.0012634,44744.0,44739.0,0.0324]
[1633074121252,0.20176365,44741.0,44739.0,0.0324]
[1633074121649,0.0012634,44744.0,44739.0,0.0004]
[1633074122255,0.0012634,44744.0,44739.0,0.0384]
[1633074122651,0.22559214,44742.0,44739.0,0.0384]
[1633074123252,0.10861828,44748.0,44739.0,0.0384]
[1633074123651,0.10861828,44748.0,44739.0,0.0004]
[1633074124254,0.20379054,44744.0,44739.0,0.0374]
[1633074124454,0.20470528,44748.0,44739.0,0.0374]
[1633074124656,0.18072074,44745.0,44739.0,0.0374]
[1633074125055,0.20470528,44748.0,44739.0,0.0374]
[1633074125257,0.06451165,44749.0,44740.0,0.335311]
[1633074125461,0.0005301,44753.0,44748.0,0.00127442]
[1633074125462,0.06449636,44753.0,44748.0,0.00127442]
[1633074125668,0.06448928,44755.0,44748.0,0.02825151]
[1633074125860,0.07,44758.0,44749.0,0.29860444]
[1633074125861,0.134484,44758.0,44749.0,0.29860444]
[1633074126060,0.07,44758.0,44750.0,0.21898939]
[1633074126263,0.07,44758.0,44757.0,0.20333322]
[1633074126463,0.07,44758.0,44757.0,0.58850622]
[1633074126657,0.07,44758.0,44757.0,0.8454105]
[1633074126858,0.07,44758.0,44757.0,0.58850622]
[1633074127459,0.07006077,44758.0,44757.0,0.58850622]
[1633074127857,0.06006077,44758.0,44757.0,0.58850622]
[1633074128056,0.06006077,44758.0,44757.0,0.55862132]
[1633074128458,0.06306077,44758.0,44757.0,0.59262132]
[1633074128857,0.06006077,44758.0,44757.0,0.55862132]
[1633074129056,0.06006077,44758.0,44757.0,0.73956895]
[1633074129256,0.06006077,44758.0,44757.0,0.78956895]
[1633074129656,0.06006077,44758.0,44757.0,0.71862132]
[1633074130457,0.06006077,44758.0,44757.0,0.75162132]
[1633074130458,0.06606077,44758.0,44757.0,0.75162132]
[1633074130659,0.06478714,44758.0,44757.0,0.75162132]
[1633074131058,0.06478714,44758.0,44757.0,0.75132132]
[1633074131458,0.06478714,44758.0,44757.0,0.9879832]
[1633074131860,0.05878714,44758.0,44757.0,0.9549832]
[1633074132260,0.05878714,44758.0,44757.0,0.9909832]
[1633074133660,0.05878714,44758.0,44757.0,0.9549832]
[1633074133859,0.05878714,44758.0,44757.0,0.95485648]
[1633074134259,0.05878714,44758.0,44757.0,0.99085648]
[1633074134660,0.05878714,44758.0,44757.0,1.09085648]
[1633074135663,0.05878714,44758.0,44757.0,0.8181946]
[1633074135861,0.05878714,44758.0,44757.0,0.7181946]
[1633074136463,0.05878714,44758.0,44757.0,0.7541946]
[1633074136663,0.05878714,44758.0,44757.0,0.98702306]
[1633074137063,0.05878714,44758.0,44757.0,0.7541946]
[1633074137664,0.05878714,44758.0,44757.0,0.7181946]
[1633074138567,0.45,44757.0,44755.0,0.08136155]
[1633074138774,0.45,44757.0,44750.0,0.22343271]
[1633074138775,0.45125421,44757.0,44750.0,0.22343271]
[1633074138968,0.24124967,44750.0,44744.0,0.5484]
[1633074139171,0.37178967,44750.0,44745.0,0.4998]
[1633074139375,0.33145599,44749.0,44745.0,0.4998]
[1633074139569,0.00129129,44746.0,44745.0,0.4998]
[1633074139768,0.00129129,44746.0,44739.0,0.0004]
[1633074140171,0.23854484,44742.0,44739.0,0.0004]
[1633074140369,0.04029129,44746.0,44739.0,0.0004]
[1633074140571,0.039,44746.0,44739.0,0.447465]
[1633074140773,0.19900743,44745.0,44739.0,0.447465]
[1633074140972,0.19900743,44745.0,44740.0,0.32872913]
[1633074141768,0.19900743,44745.0,44740.0,0.5522479]
[1633074141969,0.23552604,44749.0,44745.0,0.08862625]
[1633074142173,0.22972604,44749.0,44746.0,0.223514]
[1633074142567,0.22972604,44749.0,44748.0,0.10269971]
[1633074142787,1.51233,44761.0,44748.0,0.10269971]
[1633074142788,0.12890632,44763.0,44759.0,0.81213727]
[1633074142979,0.0644397,44766.0,44763.0,0.07405618]
[1633074143177,0.06443577,44769.0,44766.0,0.335091]
[1633074143373,0.06443359,44770.0,44767.0,0.54528095]
[1633074143571,0.00116942,44771.0,44767.0,0.54528095]
[1633074143777,0.5,44767.0,44766.0,0.03626608]
[1633074143979,0.5,44767.0,44749.0,0.1]
[1633074143980,0.93245692,44767.0,44749.0,0.1]
[1633074144175,0.22663,44766.0,44748.0,0.25081665]
[1633074144369,0.22663,44766.0,44748.0,0.34313875]
[1633074144571,0.22663,44766.0,44749.0,1.0211]
[1633074144769,0.09309402,44764.0,44750.0,0.11857674]
[1633074144973,0.48924709,44762.0,44750.0,0.11857674]
[1633074145172,0.19330341,44761.0,44758.0,0.223454]
[1633074145769,0.19710897,44761.0,44758.0,0.223454]
[1633074145971,0.24559412,44762.0,44758.0,0.223454]
[1633074146171,0.19289478,44761.0,44758.0,0.223454]
[1633074146570,0.03,44761.0,44758.0,0.558625]
[1633074146769,0.03,44761.0,44753.0,0.07398681]
[1633074146770,0.24241712,44761.0,44753.0,0.07398681]
[1633074146971,0.24241712,44761.0,44751.0,0.67037079]
[1633074147373,0.24241712,44761.0,44751.0,0.24316379]
[1633074147575,0.03,44761.0,44753.0,0.00243096]
[1633074148180,0.24559412,44762.0,44753.0,0.00243096]
[1633074148376,0.22390935,44761.0,44760.0,0.385158]
[1633074148571,0.22431548,44761.0,44760.0,0.385158]
[1633074148776,0.029,44761.0,44760.0,0.385158]
[1633074148977,0.19576512,44761.0,44760.0,0.385158]
[1633074149173,0.19774356,44761.0,44760.0,0.385158]
[1633074149375,0.19774356,44761.0,44760.0,0.495158]
[1633074149575,0.24559412,44762.0,44760.0,0.495158]
[1633074150372,0.28059412,44762.0,44760.0,0.513158]
[1633074150776,0.19194287,44761.0,44760.0,0.513158]
[1633074151239,0.19194287,44761.0,44760.0,0.178]
[1633074151440,0.28059412,44762.0,44760.0,0.178]
[1633074151836,0.24559412,44762.0,44760.0,0.16]
[1633074152441,0.28059412,44762.0,44760.0,0.178]
[1633074154039,0.24559412,44762.0,44760.0,0.16]
[1633074154641,0.27959412,44762.0,44760.0,0.175]
[1633074154855,0.27959412,44762.0,44760.0,0.125]
[1633074154856,0.75128281,44761.0,44760.0,0.125]
[1633074155044,1.06185188,44761.0,44760.0,0.125]
[1633074155243,1.36239863,44761.0,44760.0,0.125]
[1633074155643,1.69712153,44761.0,44760.0,0.125]
[1633074155844,0.53848188,44761.0,44760.0,0.125]
[1633074156043,0.31185188,44761.0,44760.0,0.125]
[1633074156241,0.13360963,44759.0,44749.0,0.14366092]
[1633074156446,0.13360963,44759.0,44742.0,0.15670743]
[1633074156447,0.00127516,44752.0,44742.0,0.15670743]
[1633074156646,0.00122191,44750.0,44741.0,0.964]
[1633074156845,0.00122191,44750.0,44738.0,1.07375405]
[1633074157042,0.0005301,44749.0,44738.0,0.0004]
[1633074157242,0.23611914,44744.0,44741.0,0.08968937]
[1633074157444,0.21800155,44743.0,44741.0,0.08968937]
[1633074157648,0.22478486,44753.0,44741.0,0.08968937]
[1633074157842,0.25383197,44752.0,44741.0,0.08968937]
[1633074158043,0.25383197,44752.0,44741.0,0.09021947]
[1633074158243,0.00123586,44753.0,44741.0,0.42550947]
[1633074158452,0.58608367,44759.0,44753.0,0.21867345]
[1633074158646,0.58608367,44759.0,44749.0,0.00126794]
[1633074158647,0.22663,44758.0,44751.0,0.12716]
[1633074158846,0.58608367,44759.0,44751.0,0.12716]
[1633074159048,0.58608367,44759.0,44758.0,0.00129717]
[1633074159049,0.35415187,44759.0,44758.0,0.00129717]
[1633074159246,0.35415187,44759.0,44758.0,0.33644417]
[1633074160445,0.35415187,44759.0,44757.0,0.446862]
[1633074160646,0.38015187,44759.0,44758.0,0.03]
[1633074161452,0.57729085,44759.0,44758.0,0.03]
[1633074161654,0.57853277,44759.0,44758.0,0.03]
[1633074162054,0.38015187,44759.0,44758.0,0.03]
[1633074162247,0.38015187,44759.0,44758.0,0.0497]
[1633074162448,0.35415187,44759.0,44758.0,0.0197]
[1633074162648,0.35415187,44759.0,44758.0,0.387869]
[1633074162846,0.35415187,44759.0,44758.0,0.5102148]
[1633074163052,0.35415187,44759.0,44758.0,0.03805405]
[1633074163851,0.35415187,44759.0,44758.0,0.37322205]
[1633074164651,0.37615187,44759.0,44758.0,0.40522205]
[1633074166551,0.35415187,44759.0,44758.0,0.40722205]
[1633074168355,0.35415187,44759.0,44758.0,0.37322205]
[1633074168555,0.35415187,44759.0,44758.0,0.335168]
[1633074168756,0.25415187,44759.0,44758.0,0.369168]
[1633074170156,0.25415187,44759.0,44758.0,0.335168]
[1633074170755,0.25415187,44759.0,44758.0,0.368168]
[1633074171156,0.25415187,44759.0,44758.0,0.371036]
[1633074171958,0.24379829,44759.0,44758.0,0.371036]
[1633074172558,0.24379829,44759.0,44758.0,0.338036]
[1633074172759,0.24379829,44759.0,44758.0,0.035868]
[1633074173157,0.24379829,44759.0,44758.0,0.13861679]
[1633074173357,0.24379829,44759.0,44758.0,0.035868]
[1633074173756,0.30184829,44759.0,44758.0,0.035868]
[1633074174158,0.30184829,44759.0,44758.0,0.002868]
[1633074176158,0.29174829,44759.0,44758.0,0.002868]
[1633074178564,0.29174829,44759.0,44758.0,0.02122205]
[1633074180766,0.29174829,44759.0,44758.0,0.05522205]
[1633074180967,0.29174829,44759.0,44758.0,0.49237691]
[1633074181365,0.29174829,44759.0,44758.0,0.72047194]
[1633074181568,0.29174829,44759.0,44758.0,0.94367194]
[1633074181766,0.29174829,44759.0,44758.0,1.07367194]
[1633074181968,0.29174829,44759.0,44758.0,1.03967194]
[1633074182166,0.29174829,44759.0,44758.0,1.03680394]
[1633074182368,0.29174829,44759.0,44758.0,0.45870891]
[1633074182766,0.29174829,44759.0,44758.0,0.49670891]
[1633074184168,0.29174829,44759.0,44758.0,0.23550891]
[1633074184769,0.29174829,44759.0,44758.0,0.27550891]
[1633074185568,0.29174829,44759.0,44758.0,0.18835405]
[1633074186373,0.29174829,44759.0,44758.0,0.08835405]
[1633074186770,0.49272423,44759.0,44758.0,0.03]
[1633074186971,0.49272423,44759.0,44758.0,0.064]
[1633074187374,0.29174829,44759.0,44758.0,0.064]
[1633074187577,0.48688784,44759.0,44758.0,0.064]
[1633074187772,0.94416486,44759.0,44758.0,0.064]
[1633074187973,0.29174829,44759.0,44750.0,0.0197]
[1633074188273,0.24406083,44755.0,44749.0,0.0999]
[1633074188477,0.05805,44754.0,44749.0,0.0999]
[1633074188679,0.21928624,44753.0,44744.0,0.47932214]
[1633074188874,0.05805,44752.0,44743.0,0.79006652]
[1633074189072,0.05805,44752.0,44748.0,0.22348]
[1633074189878,0.21900278,44751.0,44750.0,0.335224]
[1633074190136,0.27705278,44751.0,44750.0,0.335224]
[1633074190279,0.48957648,44751.0,44750.0,0.335224]
[1633074190473,0.48957648,44751.0,44750.0,0.385224]
[1633074190877,0.51957648,44751.0,44750.0,0.385224]
[1633074191274,0.29135278,44751.0,44750.0,0.385224]
[1633074191674,0.29135278,44751.0,44748.0,0.22348]
[1633074191874,0.29135278,44751.0,44749.0,0.33523]
[1633074192478,0.26135278,44751.0,44749.0,0.33523]
[1633074192876,0.29735278,44751.0,44749.0,0.33523]
[1633074193072,0.09405,44751.0,44749.0,0.33523]
[1633074194072,0.09405,44751.0,44749.0,0.43341308]
[1633074194274,0.05805,44751.0,44749.0,0.43341308]
[1633074194878,0.09505,44751.0,44749.0,0.33523]
[1633074195072,0.05805,44750.0,44749.0,0.33523]
[1633074196678,0.05805,44750.0,44749.0,0.35358405]
[1633074196881,0.09205,44750.0,44749.0,0.35358405]
[1633074198075,0.05805,44750.0,44749.0,0.35358405]
[1633074198876,0.09605,44750.0,44749.0,0.35358405]
[1633074200480,0.05805,44750.0,44749.0,0.35358405]
[1633074200879,0.09505,44750.0,44749.0,0.35358405]
[1633074201477,0.09505,44750.0,44749.0,0.33523]
[1633074201878,0.09505,44750.0,44749.0,0.35358405]
[1633074202479,0.05805,44750.0,44749.0,0.35358405]
[1633074202880,0.09505,44750.0,44749.0,0.35358405]
[1633074203078,0.09505,44750.0,44749.0,0.33523]
[1633074203884,0.55781653,44750.0,44748.0,0.27348]
[1633074204083,0.55781653,44750.0,44741.0,1.328]
[1633074204084,0.35676638,44749.0,44741.0,1.328]
[1633074204286,0.0012422,44746.0,44741.0,0.2499]
[1633074204682,0.0012422,44746.0,44740.0,0.1666]
[1633074204881,0.09836486,44745.0,44740.0,0.1666]
[1633074205147,0.31452253,44744.0,44740.0,0.1666]
[1633074205683,0.29532253,44744.0,44740.0,0.1666]
[1633074206085,0.29532253,44744.0,44739.0,0.00065888]
[1633074206488,0.29532253,44744.0,44741.0,0.335281]
[1633074206682,0.29532253,44744.0,44742.0,0.09825896]
[1633074206885,0.20077453,44743.0,44742.0,0.09825896]
[1633074207081,0.23962453,44743.0,44742.0,0.09825896]
[1633074207284,0.23962453,44743.0,44741.0,0.385281]
[1633074207484,0.20835804,44742.0,44741.0,0.335281]
[1633074207683,0.24720804,44742.0,44741.0,0.335281]
[1633074208483,0.48580455,44742.0,44741.0,0.335281]
[1633074208885,0.51980455,44742.0,44741.0,0.335281]
[1633074209484,0.51980455,44742.0,44740.0,0.05]
[1633074209684,0.21527182,44741.0,44739.0,0.00065888]
[1633074209884,0.03885,44740.0,44739.0,0.05065888]
[1633074210082,0.2382688,44740.0,44739.0,0.05065888]
[1633074210487,0.03885,44740.0,44739.0,0.1270368]
[1633074210691,0.02640655,44740.0,44739.0,0.7770368]
[1633074210890,0.1873243,44751.0,44741.0,0.18675073]
[1633074211084,0.06454966,44754.0,44741.0,0.18675073]
[1633074211085,0.23317399,44755.0,44741.0,0.18675073]
[1633074211284,0.23317399,44755.0,44741.0,0.23728083]
[1633074211483,0.16862526,44755.0,44741.0,0.23728083]
[1633074211687,0.48762451,44755.0,44747.0,0.335232]
[1633074211884,0.32020307,44755.0,44747.0,0.335232]
[1633074212084,0.48672895,44755.0,44747.0,0.335232]
[1633074212283,0.32020307,44755.0,44747.0,0.335232]
[1633074212885,0.10910789,44749.0,44747.0,0.33386093]
[1633074213688,0.07210789,44749.0,44747.0,0.33386093]
[1633074214288,0.07210789,44749.0,44744.0,0.092992]
[1633074214490,0.07210789,44749.0,44744.0,0.0223]
[1633074215085,0.10710789,44749.0,44744.0,0.0223]
[1633074215689,0.10710789,44749.0,44744.0,0.357574]
[1633074216487,0.23489897,44747.0,44744.0,0.347574]
[1633074218292,0.23459831,44747.0,44745.0,0.09021023]
[1633074218690,0.07210789,44749.0,44745.0,0.09021023]
[1633074219093,0.035,44747.0,44745.0,0.09021023]
[1633074219291,0.035,44747.0,44746.0,0.335243]
[1633074220495,0.15786186,44749.0,44746.0,0.335243]
[1633074220697,0.15786186,44749.0,44744.0,0.0123]
[1633074221093,0.10810789,44749.0,44744.0,0.0123]
[1633074222092,0.18842817,44749.0,44744.0,0.0123]
[1633074222293,0.18842817,44749.0,44744.0,0.347574]
[1633074222593,0.07210789,44749.0,44744.0,0.347574]
[1633074222794,0.19179659,44746.0,44744.0,0.347574]
[1633074222994,0.05230789,44749.0,44744.0,0.347574]
[1633074223197,0.08630789,44749.0,44744.0,0.0123]
[1633074223399,0.00127413,44747.0,44740.0,0.335305]
[1633074223796,0.00127413,44747.0,44740.0,0.35365905]
[1633074223996,0.19991936,44744.0,44741.0,0.07186127]
[1633074224194,0.15216302,44749.0,44741.0,0.07186127]
[1633074224393,0.08755051,44749.0,44741.0,0.07186127]
[1633074224594,0.04755051,44749.0,44741.0,0.07186127]
[1633074224798,0.04755051,44749.0,44740.0,0.06835405]
[1633074224993,0.01355051,44749.0,44743.0,0.335282]
[1633074225196,0.19283847,44747.0,44743.0,0.335282]
[1633074225598,0.24136122,44748.0,44741.0,0.10329958]
[1633074225796,0.09468727,44747.0,44741.0,0.002]
[1633074225995,0.09468727,44747.0,44741.0,0.337296]
[1633074226198,0.09468727,44747.0,44741.0,0.002]
[1633074226394,0.51328695,44748.0,44741.0,0.002]
[1633074226595,0.20088899,44741.0,44739.0,0.00065888]
[1633074227193,0.23388899,44741.0,44739.0,0.01165888]
[1633074227595,0.23388899,44741.0,44739.0,0.09792793]
[1633074227796,0.033,44741.0,44739.0,0.09792793]
[1633074228194,0.033,44741.0,44740.0,0.335301]
[1633074228397,0.033,44741.0,44740.0,0.330301]
[1633074228597,0.27192573,44748.0,44740.0,0.330301]
[1633074228796,0.19417763,44742.0,44740.0,0.330301]
[1633074230199,0.22312465,44745.0,44741.0,0.12242871]
[1633074230399,0.06462978,44748.0,44740.0,0.05]